bitfinex/quotes_SOLUSD_20241110
["timestamp","ask_amount","ask_price","bid_price","bid_amount"]
[1731251627363,9.68708095,208.16,208.11,16.3177]
[1731251628179,9.68708095,208.16,208.11,15.8177]
[1731251628777,15.49818084,208.16,208.11,15.8177]
[1731251628974,15.49818084,208.16,208.11,12.0128]
[1731251629365,6.1012,208.22,208.11,12.0128]
[1731251629366,15.49818084,208.18,208.11,12.0128]
[1731251629565,15.49818084,208.2,208.13,15.49818084]
[1731251629784,15.49818084,208.2,208.11,12.0128]
[1731251630087,15.49818084,208.15,208.11,12.0128]
[1731251630582,15.49818084,208.15,208.11,11.0128]
[1731251630764,15.49818084,208.15,208.11,15.8177]
[1731251630970,15.49818084,208.14,208.11,11.0128]
[1731251631172,15.49818084,208.12,208.11,11.0128]
[1731251631872,15.49818084,208.12,208.09,4.8056]
[1731251632060,15.49818084,208.17,208.1,15.49818084]
[1731251632264,15.49818084,208.18,208.11,15.49818084]
[1731251632590,15.49818084,208.2,208.11,15.49818084]
[1731251633086,15.49818084,208.2,208.12,16.8172]
[1731251633287,15.49818084,208.19,208.12,16.8172]
[1731251633580,15.49818084,208.19,208.13,4.81]
[1731251633759,15.49818084,208.19,208.12,32.31538084]
[1731251633963,15.49818084,208.16,208.12,16.8172]
[1731251634878,15.49818084,208.16,208.09,39.52618084]
[1731251635074,15.49818084,208.14,208.07,39.52838084]
[1731251635288,15.49818084,208.12,208.07,24.0302]
[1731251635471,15.49818084,208.1,208.05,16.8228]
[1731251635868,15.49818084,208.11,208.05,16.8228]
[1731251636789,15.49818084,208.1,208.05,16.8228]
[1731251638181,15.49818084,208.08,208.05,12.0163]
[1731251639488,15.49818084,208.08,208.01,16.826]
[1731251639687,15.49818084,208.08,208.01,40.8633]
[1731251639896,15.49818084,208.08,208.01,56.36148084]
[1731251640094,15.49818084,208.05,208.01,16.826]
[1731251640389,15.49818084,208.03,208.01,16.826]
[1731251640688,15.49818084,208.1,208.01,16.826]
[1731251640689,15.49818084,208.02,208.01,12.0186]
[1731251641272,15.49818084,208.02,207.96,12.0209]
[1731251641497,15.49818084,208.01,207.96,12.0209]
[1731251641966,15.49818084,208.0,207.96,12.0209]
[1731251642388,10.9061,208.12,207.99,15.49818084]
[1731251642690,6.1012,208.12,207.98,20.0]
[1731251642895,6.1012,208.12,207.98,24.81]
[1731251643074,15.49818084,208.08,207.98,24.81]
[1731251643274,15.49818084,208.08,208.01,15.49818084]
[1731251643489,15.49818084,208.09,208.03,15.49818084]
[1731251643686,6.1012,208.18,208.08,15.49818084]
[1731251644001,15.4359,208.19,208.1,15.49818084]
[1731251644002,15.49818084,208.17,208.1,15.49818084]
[1731251644172,15.49818084,208.18,208.11,15.49818084]
[1731251644693,15.49818084,208.17,208.09,15.49818084]
[1731251644902,15.49818084,208.18,208.1,15.49818084]
[1731251645193,6.3885,208.23,208.11,15.49818084]
[1731251645394,15.49818084,208.19,208.12,32.31538084]
[1731251646093,15.49818084,208.2,208.13,15.49818084]
[1731251646397,15.49818084,208.2,208.14,16.8155]
[1731251646595,15.49818084,208.17,208.14,16.8155]
[1731251646796,15.49818084,208.17,208.14,12.0111]
[1731251647001,15.49818084,208.17,208.14,16.8155]
[1731251647307,15.49818084,208.19,208.14,16.8155]
[1731251647501,6.3885,208.23,208.14,16.8155]
[1731251647502,15.49818084,208.2,208.14,16.8155]
[1731251647796,15.49818084,208.19,208.14,16.8155]
[1731251648177,15.49818084,208.18,208.14,16.8155]
[1731251648480,15.49818084,208.22,208.15,15.49818084]
[1731251648673,15.49818084,208.21,208.14,27.50928084]
[1731251648894,15.49818084,208.2,208.14,12.0111]
[1731251649194,15.7563,208.26,208.14,27.50928084]
[1731251649195,15.49818084,208.21,208.14,27.50928084]
[1731251649792,15.49818084,208.24,208.17,15.49818084]
[1731251650099,15.49818084,208.23,208.16,15.49818084]
[1731251650280,15.49818084,208.26,208.19,15.49818084]
[1731251650486,15.49818084,208.27,208.2,32.30878084]
[1731251650877,15.49818084,208.29,208.22,15.49818084]
[1731251651078,15.7563,208.36,208.24,15.49818084]
[1731251651298,15.49818084,208.3,208.22,21.94618808]
[1731251651487,15.49818084,208.29,208.22,15.49818084]
[1731251651682,15.49818084,208.27,208.2,38.68568084]
[1731251651893,15.49818084,208.24,208.2,23.1875]
[1731251652094,15.49818084,208.25,208.2,23.1875]
[1731251652305,15.49818084,208.28,208.21,15.49818084]
[1731251652595,4.7999,208.34,208.22,16.8091]
[1731251652800,15.49818084,208.25,208.22,16.8091]
[1731251653390,15.49818084,208.27,208.22,16.8091]
[1731251654592,15.49818084,208.25,208.22,16.8091]
[1731251654908,15.49818084,208.26,208.22,16.8091]
[1731251655404,15.49818084,208.24,208.22,16.8091]
[1731251655587,15.49818084,208.23,208.22,12.0065]
[1731251655795,15.49818084,208.24,208.22,12.0065]
[1731251656403,15.49818084,208.23,208.22,12.0065]
[1731251657002,15.49818084,208.23,208.16,16.8138]
[1731251657199,15.49818084,208.25,208.18,15.49818084]
[1731251657507,15.49818084,208.25,208.16,40.8337]
[1731251657508,15.49818084,208.24,208.17,15.49818084]
[1731251658087,15.49818084,208.25,208.18,15.49818084]
[1731251658904,15.49818084,208.23,208.17,20.0]
[1731251659105,15.49818084,208.22,208.18,16.8123]
[1731251659297,15.49818084,208.21,208.18,16.8123]
[1731251659609,15.49818084,208.19,208.18,12.0088]
[1731251660003,15.49818084,208.19,208.13,16.8159]
[1731251661295,15.49818084,208.18,208.13,16.8159]
[1731251661792,15.49818084,208.2,208.13,16.8159]
[1731251661994,15.49818084,208.22,208.16,15.49818084]
[1731251663104,15.49818084,208.22,208.17,16.8131]
[1731251663699,15.49818084,208.26,208.18,15.49818084]
[1731251664089,15.49818084,208.21,208.17,16.8131]
[1731251664393,15.49818084,208.19,208.17,12.0094]
[1731251664895,15.49818084,208.19,208.13,4.8045]
[1731251665098,15.49818084,208.15,208.06,4.8063]
[1731251665296,15.49818084,208.13,208.06,4.8063]
[1731251665494,15.49818084,208.13,208.08,12.0144]
[1731251665905,15.49818084,208.15,208.08,12.0144]
[1731251666104,15.49818084,208.15,208.09,15.49818084]
[1731251666310,15.9505,208.23,208.08,12.0144]
[1731251666491,15.49818084,208.13,208.08,12.0144]
[1731251666893,15.49818084,208.19,208.1,15.49818084]
[1731251667210,15.49818084,208.19,208.08,12.0144]
[1731251667393,15.49818084,208.19,208.12,15.49818084]
[1731251668017,15.49818084,208.19,208.1,15.49818084]
[1731251668510,15.49818084,208.15,208.08,27.51258084]
[1731251668693,15.49818084,208.15,208.08,12.0144]
[1731251669017,15.49818084,208.13,208.08,12.0144]
[1731251669191,15.49818084,208.15,208.08,12.0144]
[1731251669906,15.49818084,208.15,208.08,27.51258084]
[1731251671115,15.49818084,208.17,208.08,32.31838084]
[1731251671613,15.49818084,208.15,208.08,32.31838084]
[1731251672010,15.49818084,208.2,208.08,32.31838084]
[1731251672011,15.49818084,208.13,208.08,16.8202]
[1731251672395,15.49818084,208.11,208.08,16.8202]
[1731251672798,15.49818084,208.11,208.08,12.0144]
[1731251672993,15.49818084,208.09,208.0,24.0374]
[1731251673197,15.9505,208.13,208.0,24.0374]
[1731251673198,15.49818084,208.06,208.0,24.0374]
[1731251674599,15.49818084,208.07,208.0,24.0374]
[1731251675500,15.49818084,208.11,208.03,15.49818084]
[1731251676517,15.49818084,208.11,208.04,16.8236]
[1731251677102,15.49818084,208.09,208.04,16.8236]
[1731251677511,15.49818084,208.07,208.04,16.8236]
[1731251678017,20.7552,208.13,208.04,16.8236]
[1731251678201,15.49818084,208.07,208.04,16.8236]
[1731251678402,15.49818084,208.07,208.04,12.0169]
[1731251678708,15.49818084,208.09,208.04,12.0169]
[1731251678915,15.49818084,208.07,208.04,12.0169]
[1731251679213,15.49818084,208.05,208.01,4.8074]
[1731251679593,15.49818084,208.03,207.99,16.827]
[1731251679792,15.49818084,208.01,207.97,4.8082]
[1731251679997,15.49818084,207.99,207.95,4.8087]
[1731251680491,15.49818084,207.99,207.95,12.0221]
[1731251680693,15.49818084,207.98,207.95,11.98151]
[1731251680900,15.49818084,207.97,207.95,11.98151]
[1731251681397,15.49818084,207.97,207.95,10.48151]
[1731251681899,15.49818084,207.99,207.95,10.48151]
[1731251682116,15.49818084,207.96,207.95,10.48151]
[1731251683011,15.49818084,207.98,207.95,10.48151]
[1731251685208,15.49818084,208.0,207.95,10.48151]
[1731251685913,15.49818084,207.99,207.95,10.48151]
[1731251687025,15.49818084,208.0,207.95,10.48151]
[1731251687209,15.49818084,208.02,207.95,10.48151]
[1731251687416,15.49818084,208.02,207.95,25.97969084]
[1731251687803,15.49818084,208.02,207.95,10.48151]
[1731251688314,15.49818084,208.01,207.95,10.48151]
[1731251688519,15.49818084,208.01,207.95,15.29031]
[1731251688701,4.8063,208.06,207.95,15.29031]
[1731251688702,15.49818084,208.02,207.95,15.29031]
[1731251689515,15.49818084,208.02,207.95,30.78849084]
[1731251689716,15.49818084,208.03,207.96,15.49818084]
[1731251690316,15.49818084,208.04,207.97,15.49818084]
[1731251690514,15.8167,208.07,207.99,15.49818084]
[1731251690515,15.49818084,208.06,207.99,15.49818084]
[1731251691027,15.49818084,208.11,208.03,15.49818084]
[1731251691239,15.49818084,208.04,207.98,39.4788]
[1731251691408,15.49818084,208.06,207.98,54.97698084]
[1731251691605,15.8167,208.13,208.01,15.49818084]
[1731251691921,15.49818084,208.09,208.02,15.49818084]
[1731251692164,15.49818084,208.08,208.01,15.49818084]
[1731251692505,15.49818084,208.1,208.02,32.32338084]
[1731251692725,15.49818084,208.1,208.03,15.49818084]
[1731251693128,15.49818084,208.1,208.02,32.32338084]
[1731251693427,15.49818084,208.1,208.03,15.49818084]
[1731251693814,15.49818084,208.1,208.04,16.8236]
[1731251694514,15.49818084,208.08,208.04,16.8236]
[1731251694706,15.49818084,208.07,208.04,16.8236]
[1731251695022,15.49818084,208.08,208.04,16.8236]
[1731251695208,15.49818084,208.09,208.04,16.8236]
[1731251695411,15.49818084,208.07,208.04,16.8236]
[1731251695925,15.49818084,208.08,208.04,12.0169]
[1731251696134,15.49818084,208.09,208.04,12.0169]
[1731251696309,15.49818084,208.07,208.04,12.0169]
[1731251696508,15.49818084,208.08,208.04,12.0169]
[1731251696710,15.49818084,208.06,208.04,12.0169]
[1731251697125,15.49818084,208.07,208.04,12.0169]
[1731251697321,15.49818084,208.09,208.04,12.0169]
[1731251697836,15.49818084,208.07,208.04,12.0169]
[1731251698317,15.49818084,208.07,208.01,4.8074]
[1731251698722,15.49818084,208.09,208.01,20.30558084]
[1731251698927,9.69415012,208.11,208.03,9.69415012]
[1731251699109,15.8167,208.13,208.05,9.69415012]
[1731251699430,9.69415012,208.11,208.03,9.69415012]
[1731251700015,9.69415012,208.09,208.01,14.50155012]
[1731251700412,9.69415012,208.07,208.01,16.826]
[1731251700730,9.69415012,208.05,208.01,16.826]
[1731251700930,4.8049,208.12,207.97,14.50235012]
[1731251701120,4.8049,208.12,207.97,26.52325012]
[1731251701121,9.69415012,208.05,207.97,26.52325012]
[1731251702820,2.46085412,208.58,208.16,23.776884]
[1731251702821,0.1,208.36,208.16,23.776884]
[1731251703020,9.69415012,208.31,208.21,9.69415012]
[1731251703230,9.69415012,208.35,208.25,9.69415012]
[1731251703434,9.69415012,208.35,208.27,9.69415012]
[1731251704309,9.69415012,208.35,208.28,16.8042]
[1731251704531,9.69415012,208.37,208.28,16.8042]
[1731251704928,22.8149,208.45,208.28,16.8042]
[1731251704929,27.5122,208.45,208.3,15.46873946]
[1731251705118,15.46873946,208.39,208.3,15.46873946]
[1731251705519,27.5122,208.45,208.28,16.8042]
[1731251705520,15.46873946,208.37,208.28,32.27293946]
[1731251706433,15.46873946,208.39,208.3,15.46873946]
[1731251706637,15.46873946,208.37,208.28,32.27293946]
[1731251707151,15.46873946,208.35,208.28,16.8042]
[1731251707728,15.46873946,208.31,208.28,12.003]
[1731251708248,15.46873946,208.35,208.28,12.003]
[1731251708534,15.46873946,208.33,208.28,12.003]
[1731251709321,15.46873946,208.32,208.28,12.003]
[1731251709537,15.46873946,208.31,208.28,12.003]
[1731251709721,15.46873946,208.29,208.23,4.8023]
[1731251710041,15.46873946,208.28,208.23,16.8082]
[1731251710235,15.46873946,208.3,208.23,16.8082]
[1731251710530,15.46873946,208.29,208.23,16.8082]
[1731251710739,15.46873946,208.27,208.23,12.0059]
[1731251710915,15.46873946,208.27,208.23,16.8082]
[1731251711431,15.46873946,208.24,208.18,4.8033]
[1731251711740,15.46873946,208.3,208.18,4.8033]
[1731251711741,15.46873946,208.23,208.18,4.8033]
[1731251712116,15.46873946,208.21,208.16,16.8134]
[1731251712313,15.46873946,208.22,208.16,16.8134]
[1731251712521,15.46873946,208.23,208.16,16.8134]
[1731251713525,38.18363946,208.3,208.16,16.8134]
[1731251713526,15.46873946,208.22,208.16,16.8134]
[1731251713729,15.46873946,208.22,208.16,12.0095]
[1731251714027,15.46873946,208.17,208.11,12.0127]
[1731251714224,15.46873946,208.16,208.11,12.0127]
[1731251714530,15.46873946,208.18,208.1,15.46873946]
[1731251714829,15.46873946,208.15,208.09,4.8054]
[1731251715040,0.1,208.23,208.09,4.8054]
[1731251715041,15.46873946,208.16,208.09,4.8054]
[1731251715220,15.46873946,208.17,208.09,20.27413946]
[1731251715429,15.46873946,208.17,208.09,32.28813946]
[1731251715619,15.46873946,208.16,208.09,16.8194]
[1731251715929,4.8032,208.2,208.01,38.22580509]
[1731251715930,15.46873946,208.13,208.01,6.5818]
[1731251716132,15.46873946,208.13,208.05,15.46873946]
[1731251716435,15.46873946,208.13,208.06,15.46873946]
[1731251716638,4.8032,208.2,208.1,15.46873946]
[1731251716823,4.8032,208.2,208.09,15.46873946]
[1731251716824,15.46873946,208.15,208.09,15.46873946]
[1731251717027,15.46873946,208.13,208.06,15.46873946]
[1731251717418,15.46873946,208.15,208.07,15.46873946]
[1731251717746,20.0,208.24,208.01,6.5818]
[1731251717747,15.46873946,208.16,208.09,4.8056]
[1731251718033,15.46873946,208.11,208.04,15.46873946]
[1731251718237,15.46873946,208.11,208.04,32.29213946]
[1731251718422,15.46873946,208.13,208.05,15.46873946]
[1731251718824,15.46873946,208.12,208.04,32.29213946]
[1731251719225,15.46873946,208.09,208.04,12.0167]
[1731251719427,15.46873946,208.05,207.99,12.0196]
[1731251719942,15.46873946,208.07,207.99,27.48833946]
[1731251720126,15.46873946,208.1,207.99,12.0196]
[1731251720928,0.1,208.1,207.99,12.0196]
[1731251721128,15.46873946,208.04,207.99,12.0196]
[1731251721430,4.8056,208.09,207.99,12.0196]
[1731251721431,15.46873946,208.03,207.99,12.0196]
[1731251721633,15.46873946,208.03,207.95,20.27753946]
[1731251721634,15.46873946,208.03,207.96,15.46873946]
[1731251721948,15.46873946,208.01,207.95,12.0221]
[1731251722321,15.46873946,208.02,207.95,16.8309]
[1731251722521,15.46873946,208.05,207.98,15.46873946]
[1731251722743,4.9056,208.09,207.98,15.46873946]
[1731251722744,15.46873946,208.06,207.98,15.46873946]
[1731251723125,15.46873946,208.07,208.0,15.46873946]
[1731251723450,0.1,208.12,207.92,24.0476]
[1731251723451,15.46873946,208.05,207.92,24.0476]
[1731251723652,15.46873946,208.05,207.98,15.46873946]
[1731251723825,15.46873946,208.04,207.96,15.46873946]
[1731251724026,15.46873946,208.02,207.94,27.49123946]
[1731251724242,15.46873946,208.03,207.95,15.46873946]
[1731251724552,15.46873946,208.03,207.96,15.46873946]
[1731251724843,15.46873946,208.05,207.97,15.46873946]
[1731251725042,15.46873946,208.04,207.97,15.46873946]
[1731251725222,15.46873946,208.03,207.96,15.46873946]
[1731251725623,15.46873946,208.02,207.95,27.49083946]
[1731251726428,15.46873946,207.99,207.91,15.46873946]
[1731251726628,15.46873946,208.0,207.93,15.46873946]
[1731251727125,15.46873946,208.1,207.96,15.46873946]
[1731251727126,15.46873946,208.03,207.96,15.46873946]
[1731251727446,4.8063,208.06,207.96,15.46873946]
[1731251727621,15.46873946,208.03,207.96,15.46873946]
[1731251727826,15.46873946,208.0,207.93,15.46873946]
[1731251728534,15.46873946,208.0,207.94,16.8316]
[1731251728734,15.46873946,208.01,207.94,16.8316]
[1731251729044,15.46873946,208.0,207.94,16.8316]
[1731251729836,15.46873946,207.99,207.92,15.46873946]
[1731251730038,15.46873946,207.98,207.92,15.46873946]
[1731251730355,15.46873946,207.99,207.93,15.46873946]
[1731251730853,15.46873946,208.0,207.93,15.46873946]
[1731251731735,15.46873946,208.0,207.94,4.809]
[1731251732249,15.46873946,208.0,207.94,16.8316]
[1731251733143,15.46873946,207.95,207.89,16.8354]
[1731251733345,15.46873946,207.96,207.89,32.30413946]
[1731251734128,15.46873946,207.97,207.9,15.46873946]
[1731251734344,15.46873946,207.97,207.91,15.46873946]
[1731251734661,16.6089,208.02,207.89,16.8354]
[1731251734662,15.46873946,207.99,207.92,15.46873946]
[1731251734834,15.46873946,207.97,207.91,15.46873946]
[1731251735833,15.46873946,207.97,207.92,16.8333]
[1731251736959,15.46873946,207.96,207.92,12.0238]
[1731251737328,15.46873946,208.0,207.93,15.46873946]
[1731251737643,15.46873946,208.02,207.95,15.46873946]
[1731251737837,15.46873946,208.01,207.94,15.46873946]
[1731251738043,15.46873946,208.0,207.95,16.8309]
[1731251738437,15.46873946,208.01,207.95,16.8309]
[1731251738936,15.46873946,208.02,207.95,15.46873946]
[1731251739147,15.46873946,208.02,207.97,16.8292]
[1731251740633,16.6089,208.13,208.01,15.46873946]
[1731251740842,16.6089,208.13,207.94,6.6171]
[1731251740843,15.46873946,208.09,208.03,15.46873946]
[1731251741358,16.6089,208.13,208.04,15.46873946]
[1731251741359,15.46873946,208.11,208.04,15.46873946]
[1731251741532,15.46873946,208.11,208.05,15.46873946]
[1731251741734,15.46873946,208.12,208.06,15.46873946]
[1731251741965,15.46873946,208.1,208.04,15.46873946]
[1731251742458,15.46873946,208.1,208.04,20.27523946]
[1731251742834,15.46873946,208.1,208.04,4.8065]
[1731251743035,15.46873946,208.1,207.94,6.6171]
[1731251743036,15.46873946,208.05,207.98,12.0201]
[1731251743236,15.46873946,208.02,207.98,12.0201]
[1731251743440,15.56873946,208.1,207.98,12.0201]
[1731251743441,15.46873946,208.03,207.98,12.0201]
[1731251743858,15.46873946,208.04,207.98,12.0201]
[1731251744155,15.46873946,208.05,207.98,27.48883946]
[1731251744689,12.1113,208.14,207.98,27.48883946]
[1731251744690,15.46873946,208.12,208.04,15.46873946]
[1731251744849,15.46873946,208.15,208.08,15.46873946]
[1731251745037,4.8036,208.18,208.09,15.46873946]
[1731251745346,15.46873946,208.15,208.08,15.46873946]
[1731251745663,22.8121,208.19,208.1,15.46873946]
[1731251745664,15.46873946,208.17,208.1,15.46873946]
[1731251745959,0.1,208.25,208.01,4.81]
[1731251745960,26.293,208.25,208.14,15.46873946]
[1731251746157,15.46873946,208.2,208.13,15.46873946]
[1731251746459,15.46873946,208.19,208.08,20.0]
[1731251746662,15.46873946,208.19,208.13,16.8163]
[1731251748059,21.4909,208.25,208.13,16.8163]
[1731251748239,15.46873946,208.21,208.14,15.46873946]
[1731251748452,15.46873946,208.21,208.13,32.28503946]
[1731251749272,15.46873946,208.24,208.17,15.46873946]
[1731251749463,15.46873946,208.25,208.18,15.46873946]
[1731251749650,15.46873946,208.25,208.14,20.0]
[1731251749651,15.46873946,208.24,208.16,15.46873946]
[1731251749842,15.46873946,208.19,208.13,16.8163]
[1731251751369,15.46873946,208.17,208.13,16.8163]
[1731251751549,15.46873946,208.17,208.13,12.0117]
[1731251752567,15.46873946,208.16,208.13,12.0117]
[1731251752771,15.46873946,208.14,208.08,4.8056]
[1731251752953,15.46873946,208.11,208.08,4.8056]
[1731251753655,15.46873946,208.12,208.08,4.8056]
[1731251753850,15.46873946,208.12,208.07,12.0147]
[1731251754451,15.46873946,208.16,208.08,15.46873946]
[1731251754683,15.46873946,208.18,208.11,15.46873946]
[1731251755052,15.46873946,208.21,208.14,15.46873946]
[1731251755252,6.0103,208.24,208.15,15.46873946]
[1731251755253,10.8125,208.24,208.15,15.46873946]
[1731251755476,10.8125,208.24,208.08,20.0]
[1731251755967,10.8125,208.24,208.09,16.8196]
[1731251756558,15.46873946,208.17,208.1,15.46873946]
[1731251756766,15.46873946,208.18,208.11,15.46873946]
[1731251757277,15.46873946,208.18,208.12,16.8172]
[1731251757759,15.46873946,208.2,208.13,15.46873946]
[1731251758074,15.46873946,208.23,208.16,15.46873946]
[1731251758370,15.46873946,208.25,208.17,15.46873946]
[1731251758580,15.46873946,208.21,208.12,40.8418]
[1731251758868,26.27983946,208.3,208.12,40.8418]
[1731251759172,6.0103,208.3,208.19,15.46873946]
[1731251759377,4.8004,208.32,208.18,40.8299]
[1731251759955,20.2805,208.34,208.18,40.8299]
[1731251760156,20.2805,208.34,208.2,20.0]
[1731251760671,15.46873946,208.27,208.2,15.46873946]
[1731251760857,15.46873946,208.26,208.19,21.76323946]
[1731251761177,15.46873946,208.27,208.2,32.27933946]
[1731251761682,15.46873946,208.28,208.2,32.27933946]
[1731251762169,15.4806,208.34,208.23,15.46873946]
[1731251762378,15.46873946,208.31,208.23,15.46873946]
[1731251762554,15.46873946,208.31,208.24,15.46873946]
[1731251762761,15.46873946,208.35,208.27,15.46873946]
[1731251762972,15.46873946,208.34,208.27,15.46873946]
[1731251763272,15.46873946,208.33,208.26,15.46873946]
[1731251763758,4.7985,208.4,208.26,15.46873946]
[1731251763956,15.46873946,208.35,208.28,15.46873946]
[1731251764161,15.46873946,208.35,208.26,15.46873946]
[1731251764364,15.46873946,208.35,208.27,16.805]
[1731251764578,15.46873946,208.33,208.27,16.805]
[1731251765165,15.46873946,208.31,208.27,12.0036]
[1731251765380,4.9988,208.39,208.25,4.8019]
[1731251765669,15.46873946,208.3,208.25,4.8019]
[1731251766063,15.46873946,208.34,208.25,32.27543946]
[1731251766379,15.46873946,208.34,208.27,15.46873946]
[1731251766672,15.46873946,208.36,208.27,15.46873946]
[1731251767068,15.46873946,208.36,208.29,15.46873946]
[1731251767266,15.46873946,208.4,208.31,15.46873946]
[1731251768273,4.7976,208.44,208.3,6.5705]
[1731251768274,15.46873946,208.38,208.32,16.801]
[1731251768463,15.46873946,208.36,208.32,16.801]
[1731251768864,4.7976,208.44,208.32,16.801]
[1731251768865,15.46873946,208.34,208.32,16.801]
[1731251769059,15.46873946,208.34,208.27,12.0035]
[1731251769271,15.46873946,208.3,208.27,12.0035]
[1731251770360,15.46873946,208.32,208.27,12.0035]
[1731251771465,15.46873946,208.3,208.27,12.0035]
[1731251773081,15.46873946,208.32,208.27,12.0035]
[1731251773576,15.46873946,208.34,208.27,12.0035]
[1731251774183,15.46873946,208.33,208.27,12.0035]
[1731251774875,15.46873946,208.33,208.24,15.46873946]
[1731251775081,15.46873946,208.33,208.26,15.46873946]
[1731251775298,15.46873946,208.35,208.26,15.46873946]
[1731251775588,15.46873946,208.37,208.28,15.46873946]
[1731251775896,15.46873946,208.37,208.25,40.8163]
[1731251775897,15.46873946,208.39,208.3,15.46873946]
[1731251776262,20.0269,208.43,208.32,15.46873946]
[1731251776485,15.46873946,208.41,208.32,15.46873946]
[1731251776664,4.7979,208.43,208.32,22.03923946]
[1731251776866,15.46873946,208.41,208.32,22.03923946]
[1731251777177,15.46873946,208.41,208.33,16.8001]
[1731251777567,15.46873946,208.41,208.34,15.46873946]
[1731251778778,4.7975,208.44,208.33,16.8001]
[1731251778973,15.46873946,208.39,208.33,16.8001]
[1731251779595,15.46873946,208.35,208.28,12.0025]
[1731251780082,11.9938,208.45,208.29,0.11]
[1731251780283,11.9938,208.45,208.31,15.46873946]
[1731251780284,15.46873946,208.39,208.31,15.46873946]
[1731251780584,15.46873946,208.38,208.31,15.46873946]
[1731251780965,15.46873946,208.38,208.32,16.801]
[1731251781776,15.46873946,208.36,208.32,16.801]
[1731251781975,15.46873946,208.35,208.32,12.0007]
[1731251782200,15.46873946,208.4,208.24,6.5705]
[1731251782201,15.46873946,208.33,208.27,12.0032]
[1731251782982,4.797,208.46,208.32,15.46873946]
[1731251783191,15.46873946,208.38,208.3,15.46873946]
[1731251783687,15.46873946,208.36,208.28,27.47173946]
[1731251783874,15.46873946,208.34,208.28,12.003]
[1731251784069,4.897,208.46,208.29,15.46873946]
[1731251784270,15.46873946,208.37,208.29,15.46873946]
[1731251785091,15.46873946,208.37,208.3,16.8026]
[1731251787189,15.46873946,208.39,208.31,15.46873946]
[1731251787802,15.46873946,208.41,208.33,15.46873946]
[1731251788092,15.46873946,208.41,208.34,6.2459]
[1731251788597,15.46873946,208.42,208.34,21.71463946]
[1731251788896,15.46873946,208.41,208.34,21.71463946]
[1731251789273,30.69773946,208.5,208.34,21.71463946]
[1731251789274,15.46873946,208.43,208.36,15.46873946]
[1731251789471,15.46873946,208.42,208.35,32.26733946]
[1731251790682,15.46873946,208.41,208.35,16.7986]
[1731251790891,15.46873946,208.41,208.33,15.0377]
[1731251790892,15.46873946,208.37,208.31,12.0013]
[1731251791305,15.46873946,208.38,208.31,27.47003946]
[1731251791494,20.0,208.48,208.37,0.1]
[1731251791708,15.46873946,208.39,208.36,0.1]
[1731251792406,4.92648161,208.61,208.42,0.1]
[1731251792610,4.92648161,208.61,208.3,28.9045]
[1731251792611,30.93747892,208.43,208.33,0.1]
[1731251792785,15.46873946,208.39,208.38,0.1]
[1731251792990,15.46873946,208.41,208.38,0.1]
[1731251793307,15.46873946,208.4,208.38,0.1]
[1731251793482,15.46873946,208.41,208.38,0.1]
[1731251793692,15.46873946,208.5,208.38,0.1]
[1731251793693,15.46873946,208.4,208.38,0.1]
[1731251793900,15.46873946,208.4,208.37,0.1]
[1731251794093,15.46873946,208.5,208.46,0.1]
[1731251794399,23.45067945,208.91,208.48,0.1]
[1731251794725,15.46873946,208.54,208.5,0.1]
[1731251795006,30.77713946,208.6,208.46,0.1]
[1731251795209,30.77713946,208.6,208.45,0.1]
[1731251795512,31.86458955,208.6,208.4,0.1]
[1731251795807,24.85682333,208.59,208.4,0.1]
[1731251795984,15.46873946,208.43,208.4,0.2]
[1731251796184,15.46873946,208.46,208.43,0.2]
[1731251796405,15.46873946,208.47,208.45,0.2]
[1731251796614,15.46873946,208.47,208.4,15.18205041]
[1731251796994,15.46873946,208.46,208.39,15.46873946]
[1731251797395,15.46873946,208.46,208.4,4.7984]
[1731251797602,0.1,208.56,208.4,20.26713946]
[1731251797914,15.46873946,208.45,208.4,4.7984]
[1731251798985,0.1,208.56,208.4,20.26713946]
[1731251798986,15.46873946,208.47,208.4,20.26713946]
[1731251799191,15.46873946,208.49,208.42,15.46873946]
[1731251799709,15.46873946,208.5,208.43,15.46873946]
[1731251800009,15.46873946,208.55,208.45,6.2459]
[1731251800198,15.46873946,208.52,208.47,15.0377]
[1731251800384,15.46873946,208.6,208.47,15.0377]
[1731251800385,15.46873946,208.5,208.47,15.0377]
[1731251800992,15.46873946,208.49,208.45,11.043]
[1731251801498,15.46873946,208.47,208.45,6.2459]
[1731251801686,15.46873946,208.46,208.43,16.7915]